Cogmind - Beta 13 @@@ ROGUE MODE // 2024.03.31 @ 23:37:47 Player: KoT Result: Destroyed by G-47 Trooper with Particle Gun Performance ------------- Evolutions (2) 1000 Regions Visited (4) 800 Robots Destroyed (50) 250 Value Destroyed (1341) 1341 Prototype IDs (1) 20 Alien Tech Used (0) 0 Bonus (-694) -694 TOTAL SCORE: 2717 Bonus ------- Follower Combat Kills 7 Friendly Fire -701 Cogmind --------- Core Integrity 0/550 Matter 225/300 Energy 74/100 System Corruption 1% Temperature Warm (104) Movement Core (700) Ox13 Location -8/Materials Parts ------- > --- POWER (1) -------- (None) > --- PROPULSION (3) --- (None) > --- UTILITY (4) ------ High-capacity Storage Unit > --- WEAPON (3) ------- (None) > --- INVENTORY (20) --- Signal Interpreter Insulated Plating System Shield Heavy Assault Rifle Grenade Launcher Rocket Launcher Mining Laser Peak State ------------ > --- POWER ------------ Light Ion Engine > --- PROPULSION ------- Aluminum Leg Aluminum Leg Improved Aluminum Leg > --- UTILITY ---------- High-capacity Storage Unit Targeting Computer Decoy Drone Bay > --- WEAPON ----------- Light Assault Rifle Heavy Assault Rifle > --- INVENTORY -------- Signal Interpreter Insulated Plating System Shield Heavy Assault Rifle Heavy Assault Rifle High-powered Shotgun Grenade Launcher Rocket Launcher Rocket Launcher Mining Laser [Rating: 26] Favorites ----------- Power Ion Engine Engine Ion Engine Propulsion Aluminum Leg Leg Aluminum Leg Utility High-capacity Storage Unit Device Sensor Array Storage High-capacity Storage Unit Processor Targeting Computer Weapon Light Assault Rifle Energy Gun EM Pulse Gun Energy Cannon Heavy Particle Cannon Ballistic Gun Light Assault Rifle Ballistic Cannon Heavy Assault Cannon Launcher Rocket Launcher Build | -11 -10 -10 -9 -8 ------- Run | Yrd Mat Min Mat Mat Slots Evolved 4 | . . . 2 2 Power . | . . . . . Propulsion 1 | . . . 1 . Utility 2 | . . . 1 1 Weapon 1 | . . . . 1 Parts Attached 29 | 6 4 . 11 8 Power 4 | 1 1 . 2 . Engine 4 | 1 1 . 2 . Core . | . . . . . Reactor . | . . . . . Propulsion 7 | 2 . . 4 1 Treads . | . . . . . Leg 7 | 2 . . 4 1 Wheel . | . . . . . Hover . | . . . . . Flight . | . . . . . Utility 6 | 1 2 . 1 2 Device 3 | . . . 1 2 Storage 2 | 1 1 . . . Processor 1 | . 1 . . . Hackware . | . . . . . Protection . | . . . . . Artifact . | . . . . . Weapon 12 | 2 1 . 4 5 Energy Gun 3 | 1 1 . 1 . Energy Cannon 1 | . . . . 1 Ballistic Gun 5 | 1 . . 2 2 Ballistic Cannon 2 | . . . 1 1 Launcher 1 | . . . . 1 Special Weapon . | . . . . . Impact Weapon . | . . . . . Slashing Weapon . | . . . . . Piercing Weapon . | . . . . . Special Melee Weapon . | . . . . . Unidentified Prototypes 1 | . . . . 1 Parts Lost 25 | . 1 . 10 14 Power 3 | . . . 2 1 Propulsion 7 | . . . 3 4 Utility 3 | . . . 1 2 Weapon 12 | . 1 . 4 7 Highest Loss Streak 7 | . 1 . 4 7 To Critical Strikes . | . . . . . Average Slot Usage (%) 76 | . 93 100 70 52 Engine 8 | . 14 14 6 2 Leg 20 | . 28 28 17 12 Device 4 | . . . 8 3 Storage 11 | . 14 14 11 9 Processor 10 | . 8 14 11 3 Energy Gun 6 | . 13 14 4 . Ballistic Gun 9 | . 14 14 5 10 Ballistic Cannon 3 | . . . 5 6 Naked Turns . | . . . . . Heaviest Build 66 | 11 48 48 58 66 Greatest Support 33 | 20 20 20 33 33 Greatest Overweight (x) 18 | . 2 2 4 18 Average Overweight (x) 2 | . . 2 2 3 Largest Inventory Capacity 20 | 8 20 20 20 20 Average Capacity 19 | 6 15 20 20 20 Most Carried 14 | 5 4 12 14 14 Average Carried 9 | 2 2 8 11 9 Final Capacity 20 | 8 20 20 20 20 Final Carried 12 | 1 3 12 12 7 Class Distribution -------------------- 92% | Mutant 7% | Gunner Dominant Class ---------------- Mutant | -10/Materials Mutant | -10/Mines Mutant | -9/Materials Gunner | -8/Materials Resources | -11 -10 -10 -9 -8 ----------- Run | Yrd Mat Min Mat Mat Matter Collected 984 | 249 70 4 347 314 Remotely . | . . . . . Salvage Created 1282 | . 196 . 632 454 Parts 78 | . 9 . 51 18 Haulers Intercepted . | . . . . . Recyclers Shooed . | . . . . . Parts Field Recycled . | . . . . . Retrieved Matter . | . . . . . Parts Self-Destructed . | . . . . . Prevented . | . . . . . Kills | -11 -10 -10 -9 -8 ------- Run | Yrd Mat Min Mat Mat Combat Hostiles Destroyed 40 | . 4 . 22 14 Guns 14 | . 4 . 7 3 Cannons 22 | . . . 14 8 AOE 4 | . . . 1 3 Classes Destroyed 13 | . 2 . 6 5 Worker 2 | . . . 1 1 Builder 1 | . . . 1 . Recycler 2 | . . . 2 . Operator 1 | . . . 1 . Drone 3 | . . . . 3 Watcher 4 | . 1 . 3 . Swarmer 17 | . . . 14 3 Grunt 14 | . 4 . 5 5 Brawler 1 | . . . . 1 Duelist 1 | . . . . 1 Protector 1 | . . . . 1 Sentry 5 | . . . 3 2 Hunter 1 | . . . . 1 Best Kill Streak 7 | . 3 . 7 5 Combat Bots Only 5 | . 2 . 4 5 Max Kills in Single Turn 4 | . 2 . 1 4 Gunslinging 1 | . 1 . . . Exploded 1 | . . . 1 1 Melee . | . . . . . Uniques/NPCs Destroyed . | . . . . . Combat | -11 -10 -10 -9 -8 -------- Run | Yrd Mat Min Mat Mat Hostile Shots Fired 342 | . 32 2 169 139 Missed 86 | . 6 . 48 32 Damage Taken 3619 | . 324 15 1268 2012 Core 969 | . 49 8 352 560 Absorbed by Shields . | . . . . . Core Remaining (%) 63 | 100 . 77 12 . Volleys Fired 162 | . 27 1 90 44 Largest 3 | . 2 2 2 3 Hottest 133 | . 60 60 85 133 Shots Fired 254 | . 47 2 113 92 Gun 162 | . 47 2 70 43 Cannon 90 | . . . 43 47 Launcher 2 | . . . . 2 Special . | . . . . . Kinetic 190 | . 27 1 92 70 Thermal 24 | . . . 4 20 Explosive 2 | . . . . 2 Electromagnetic 38 | . 20 1 17 . Robot Hit Streak 20 | . 5 . 9 20 Robot Miss Streak 5 | . 4 2 5 2 Penetration Max . | . . . . . Secondary Targets 1 | . 1 . . . Max Gunslinging Chain 1 | . 1 . . . Shots Hit Robots 164 | . 25 . 73 66 Core Hits 80 | . 12 . 38 30 Critical Kills 2 | . 1 . 1 . Critical Parts Destroyed 1 | . . . . 1 Critical Strikes 5 | . 2 . 2 1 Destroy 3 | . 1 . 1 1 Blast 1 | . . . 1 . Corrupt 1 | . 1 . . . Melee Attacks . | . . . . . Impact . | . . . . . Slashing . | . . . . . Piercing . | . . . . . Sneak Attacks . | . . . . . Combat Hostiles . | . . . . . Follow-up Attacks . | . . . . . Damage Inflicted 4599 | . 354 . 1942 2303 Guns 1265 | . 314 . 391 560 Cannons 2130 | . . . 1483 647 Explosions 1188 | . 40 . 53 1095 Melee . | . . . . . Ramming 16 | . . . 15 1 Kinetic 2753 | . 130 . 1734 889 Thermal 438 | . 40 . 80 318 Explosive 1095 | . . . . 1095 Electromagnetic 297 | . 184 . 113 . Impact . | . . . . . Slashing . | . . . . . Piercing . | . . . . . Highest Corruption 1 | . . . . 1 Average Corruption 1 | . . . . 1 Corruption Purged . | . . . . . Corruption Blocked . | . . . . . Effects 3 | . . . . 3 Message Errors 1 | . . . . 1 Matter Fused 1 | . . . . 1 Weapon Failures 1 | . . . . 1 Overload Shots . | . . . . . Overflow Damage 322 | . . . 194 128 Projectiles 218 | . . . 194 24 Explosions 104 | . . . . 104 Melee . | . . . . . Knockbacks 12 | . . . 6 6 Impact . | . . . . . Kinetic 10 | . . . 5 5 Secondary 2 | . . . 1 1 Self-Inflicted Damage 274 | . . . . 274 Shots 4 | . . . . 4 Rammed . | . . . . . Targets Rammed 4 | . . 1 2 1 Kicked 4 | . . 1 2 1 Crushed . | . . . . . Highest Temperature 190 | . 74 20 76 190 Average Temperature 29 | . 30 15 17 48 Received Heat Transfer 1215 | . 180 . 342 693 Siege Activations . | . . . . . Robots Corrupted . | . . . . . Combat Hostiles . | . . . . . Parts Fried 2 | . 2 . . . Impact Corruptions 1 | . . . 1 . Robots Melted . | . . . . . Combat Hostiles . | . . . . . Parts Melted . | . . . . . Heat Transferred 598 | . 50 . 85 463 Parts Sabotaged . | . . . . . Parts Stolen . | . . . . . Parts Stripped . | . . . . . Power Chain Reactions 2 | . 1 . 1 . Alert | -11 -10 -10 -9 -8 ------- Run | Yrd Mat Min Mat Mat Peak Influence 358 | . 159 51 253 358 Initial 92 | . . 5 19 92 Average 101 | . 72 20 126 166 Maximum Alert Level 1 | . . . 1 1 Low Security (%) 82 | 100 100 100 72 77 Level 1 17 | . . . 27 22 Level 2 . | . . . . . Level 3 . | . . . . . Level 4 . | . . . . . Level 5 . | . . . . . High Security . | . . . . . Max Security . | . . . . . Squads Dispatched 10 | . 1 1 3 5 Investigation 4 | . . 1 2 1 Extermination . | . . . . . Reinforcement 2 | . 1 . 1 . Assault 1 | . . . . 1 Garrison 3 | . . . . 3 Intercept . | . . . . . Searches Triggered . | . . . . . Construction Impeded . | . . . . . Haulers Reinforced . | . . . . . Active Scanning Responses . | . . . . . Cargo Convoy Interrupts . | . . . . . Stealth | -11 -10 -10 -9 -8 --------- Run | Yrd Mat Min Mat Mat Distress Signals 4 | . 1 . 2 1 Communications Jammed . | . . . . . Distress Signals . | . . . . . Times Spotted 63 | . 7 3 36 17 Peak Tracking Total 6 | . 2 3 6 5 Tactical Retreats 3 | . . 1 2 . Traps | -11 -10 -10 -9 -8 ------- Run | Yrd Mat Min Mat Mat Traps Triggered 2 | . . . 1 1 Indirectly . | . . . . . Trap Hack Attempts . | . . . . . Triggered . | . . . . . Disarmed . | . . . . . Reprogrammed . | . . . . . Reused . | . . . . . Traps Extracted . | . . . . . Installed . | . . . . . Triggered . | . . . . . Machines | -11 -10 -10 -9 -8 ---------- Run | Yrd Mat Min Mat Mat Machines Disabled 4 | . . . 1 3 Max in Single Turn 1 | . . . 1 1 Garrison Access 1 | . . . . 1 Machines Repaired . | . . . . . Machines Dismantled . | . . . . . Machines Sabotaged . | . . . . . Overloaded Fab Kills . | . . . . . Hacking | -11 -10 -10 -9 -8 --------- Run | Yrd Mat Min Mat Mat Machines Accessed 10 | . 2 2 4 2 Terminals 7 | . 2 . 4 1 Fabricators . | . . . . . Repair Stations . | . . . . . Recycling Units . | . . . . . Scanalyzers . | . . . . . Garrison Access 1 | . . . . 1 Total Hacks 20 | . 3 2 12 3 Successful 9 | . 2 2 3 2 Failed 11 | . 1 . 9 1 Catastrophic 2 | . . . 2 . Database Lockouts . | . . . . . Manual . | . . . . . Terminals 17 | . 3 . 12 2 Fabricators . | . . . . . Repair Stations . | . . . . . Recycling Units . | . . . . . Scanalyzers . | . . . . . Garrison Access 1 | . . . . 1 Terminal Hacks 8 | . 2 2 3 1 Record 2 | . . . 1 1 Robot Analysis 1 | . 1 . . . Open Door 2 | . . 2 . . Locate Traps 2 | . 1 . 1 . Zone Layout 1 | . . . 1 . Fabricator Hacks . | . . . . . Repair Station Hacks . | . . . . . Recycling Unit Hacks . | . . . . . Scanalyzer . | . . . . . Garrison Access Hacks 1 | . . . . 1 Unlock Access 1 | . . . . 1 Unauthorized Hacks . | . . . . . Terminals . | . . . . . Fabricators . | . . . . . Repair Stations . | . . . . . Recycling Units . | . . . . . Scanalyzers . | . . . . . Garrison Access . | . . . . . Data Cores Recovered 1 | . . . 1 . Used . | . . . . . Hacking Detections 6 | . 1 . 4 1 Full Trace Events 1 | . . . 1 . Feedback Events . | . . . . . Feedback Blocked . | . . . . . Robot Schematics Acquired . | . . . . . Robots Built . | . . . . . Authchips . | . . . . . Time . | . . . . . Total Robot Build Rating . | . . . . . Part Schematics Acquired . | . . . . . Parts Built . | . . . . . Authchips . | . . . . . Time . | . . . . . Total Part Build Rating . | . . . . . Parts Repaired . | . . . . . Time . | . . . . . Parts Recycled . | . . . . . Recycled Matter . | . . . . . Retrieved Matter . | . . . . . Retrieved Components . | . . . . . Parts Scanalyzed . | . . . . . Part Schematics Acquired . | . . . . . Parts Damaged . | . . . . . Bothacking | -11 -10 -10 -9 -8 ------------ Run | Yrd Mat Min Mat Mat Used RIF Installer . | . . . . . Robots Hacked . | . . . . . Non-combat . | . . . . . Combat . | . . . . . Robot Hacks Applied . | . . . . . Relay Couplers Released 4 | . . . . 4 Machine Destruction 4 | . . . . 4 Fabnet Peak Effective % . | . . . . . Robots Rewired . | . . . . . Allies Hacked . | . . . . . Hacks Repelled . | . . . . . Allies | -11 -10 -10 -9 -8 -------- Run | Yrd Mat Min Mat Mat Total Allies 1 | . . 1 . . Largest Group 1 | . . 1 . . Highest-Rated Group 31 | . . 31 . . Highest-Rated Ally 31 | . . 31 . . Total Orders . | . . . . . Ally Attacks 5 | . . 5 . . Total Damage 62 | . . 62 . . Kills 1 | . . 1 . . Allies Corrupted . | . . . . . Allies Melted . | . . . . . Intel | -11 -10 -10 -9 -8 ------- Run | Yrd Mat Min Mat Mat Robot Analysis Total 1 | . 1 . . . Derelict Logs Recovered 1 | . . 1 . . Drone Launches 16 | . . . . 16 Drone Recoveries . | . . . . . Exploration | -11 -10 -10 -9 -8 ------------- Run | Yrd Mat Min Mat Mat Turns Passed 3458 | 56 461 704 1750 487 Spaces Moved 1123 | 44 208 267 500 104 Core 13 | 11 . . . 2 Treads . | . . . . . Legs 1110 | 33 208 267 500 102 Wheels . | . . . . . Hover . | . . . . . Flight . | . . . . . Fastest Speed 50 | 50 120 260 190 190 Average Speed 265 | 102 183 260 301 341 Slowest Speed 950 | 120 260 260 400 950 Overloaded Moves . | . . . . . Propulsion Burnouts . | . . . . . Robots Hopped . | . . . . . Cave-ins Triggered . | . . . . . Exploration Rate (%) 35 | 4 49 42 42 39 Regions Visited 4 Branch Regions 1 Pre-discovered Areas . | . . . . . Known Exits Taken . | . . . . . Unknown Exits Taken 4 | 1 1 1 1 . Scrap Searched . | . . . . . Spaces Dug . | . . . . . Terrain Destroyed 78 | . 8 . 24 46 Melee . | . . . . . Projectile 19 | . . . 18 1 AOE 59 | . 8 . 6 45 Terrain Rammed . | . . . . . Walls Destroyed . | . . . . . Machines Disabled . | . . . . . Actions | -11 -10 -10 -9 -8 --------- Run | Yrd Mat Min Mat Mat Total 1350 | 54 246 275 614 161 Wait . | . . . . . Move 1119 | 43 207 266 499 104 Hop . | . . . . . Pick Up 33 | 5 6 7 12 3 Fast Attach 2 | 2 . . . . Attach 25 | 4 2 . 11 8 Detach 1 | . . . . 1 Swap 2 | . 2 . . . Drop 2 | . 2 . . . Fire 162 | . 27 1 90 44 Melee . | . . . . . Ram . | . . . . . Kick 4 | . . 1 2 1 Crush . | . . . . . Escape Stasis . | . . . . . Rewire . | . . . . . Trap . | . . . . . Miscellaneous . | . . . . . Route ------- -11/Scrapyard -10/Materials (discovered 2 exits: *Min x2) -10/Mines -9/Materials (discovered 3 exits: *Mat / Min x2) -8/Materials History --------- Turn | Location | Event 7 | -11/Scrapyard | Discovered new exit (range 16) 57 | -11/Scrapyard | Entered Materials 214 | -10/Materials | Discovered new exit (range 8) 305 | -10/Materials | Build established: Mutant 427 | -10/Materials | Discovered new exit (range 3) 518 | -10/Materials | Entered Mines 566 | -10/Mines | Met a Derelict shopkeep closing up shop 728 | -10/Mines | Received a Mining Laser from a helpful Derelict 915 | -10/Mines | Received a Rocket Launcher from a helpful Derelict 1146 | -10/Mines | Discovered new exit (range 9) 1181 | -10/Mines | Found the Drone Emporium 1195 | -10/Mines | Found Prototype Device 1222 | -10/Mines | Entered Materials 1222 | -9/Materials | Evolved 2 slots: Propulsion x1, Utility x1 1223 | -9/Materials | Identified exit to Mines 1736 | -9/Materials | Lost 4 parts (2n2w) 1762 | -9/Materials | Discovered new exit (range 16) 2480 | -9/Materials | Core integrity fell below 50% 2678 | -9/Materials | Lost 3 parts (1p1u1w) 2857 | -9/Materials | Core integrity fell below 20% 2972 | -9/Materials | Entered another Materials area 2972 | -8/Materials | Evolved 2 slots: Utility x1, Weapon x1 2972 | -8/Materials | Identified Decoy Drone Bay 3083 | -8/Materials | Garrison activated, responded to threat 3125 | -8/Materials | Core integrity fell below 50% 3145 | -8/Materials | Lost 7 parts (1p3n3w) 3180 | -8/Materials | Identified exit to Garrison 3186 | -8/Materials | Lost 10 allies 3456 | -8/Materials | Core integrity fell below 20% 3459 | -8/Materials | Destroyed by G-47 Trooper with Particle Gun Last Messages --------------- 03442_ Fusion Modulator explodes. 03442_ Hvy. Assault Rifle destroyed. 03442_ Destroyed Hvy. Assault Rifle. 03446_ C-30 ARC bursts open, deploying its payload. 03446_ G-50 Soldier unfolds itself. 03446_ G-47 Trooper unfolds itself. 03449_ U-05 Engineer lays Concrete. 03450_ U-05 Engineer builds a Wall. 03453_ Aluminum Leg destroyed. 03454_ U-05 Engineer builds a Wall. 03455_ R-06 Scavenger collects Lgt. Assault Rifle. 03456_ I-25 Savior destroyed. 03459_ U-05 Engineer builds a Wall. 03459_ Hvy. Particle Cannon destroyed. 03459_ G-47 Trooper destroyed. 03459_ Destroyed Imp. Heat Sink. 03459_ Rocket Launcher destroyed. 03459_ Destroyed Rocket Launcher. Map ----- +----------------------------------------------------+ | ????????????????????????????????????????????????? | | ????????????????????????????????????????????????? | | ????????????????????????????????????????????????? | | ????????????????????????????????????????????????? | | ????????????????????????????????????????????????? | | ????????????????????????????????????????????????? | | ????????????????????????????????????????????????? | | ???????????????????????????????????? ?????????? | | ??????????????????????????????????? ????????? | | ???????????????????????????????????# #????????? | | ?????????????????????? ?"" ???????# #????????? | | ???????????????????? ?? ??????# #????????? | | ?????????????????? ?? #?????# +????????? | | ?????????????????? """ #?????# #????????? | | ??????????????????? """ #?????# #????????? | | ??????????????????? """ #?????# #????????? | | ??????????????????? ##????# #????????? | | ???????????????????? #????# #????????? | | ???????????????????? #????# #?##??#### | | ???????????????????#? % ###### ###"### | | ???????????????????# # = | | ??????????????????## # | | ??????????????????? ; gg * | | ???????????######+###; %g%! ##"##+#######" | | ???????????# ; r = ## ! #?###% | | ???????????# ; @ ## #???# | | ???????????# ; ## #???# | | ???????????# ; ## = #???# | | ??????????##########;;;;;;;;; ## [#???# | | ??????????# !## ; ;; ## ##### | | ??????????# #;u##;;# # ! + | | ??????????# """ # # ###### | | ????????????""""" + % T # #????#^ | | ????????????""""" # ##########????# | | ????????????""""" # ## #?????????????# | | ???????????? """ # ########???????####### | | ???????????? =# ######???????# | | ????????????######### #???????# | | ????????????????????# #### !!## | | ????????????????????# ! ]]## """ # | | ????????????????????# !!!#### ]]## """ # | | ????????????????????# !!!#????????? """ # | | ????????????????????# % % !!!#??????????? # | | ????????????????????# % #??????????? # | | ???????????????????## #???????????""" # | | ???????????????????## % #???????????""" # | | ???????????????????## #?????????????" ? | | ???????????????????## % #????????????????? | | ???????????????????## % #????????????????? | | ???????????????????## % #????????????????? | +----------------------------------------------------+ Best States ------------- Heat Dissipation 31 Energy Generation 10 Energy Capacity 250 Matter Stores 300 Matter Capacity 300 Sight Range 16 Robot Scan Range 14 Terrain Scan Density 10 Evasion (%) 55 Targeting Accuracy 5 Item Schematics ----------------- None Robot Schematics ------------------ None Fabricated ------------ Nothing Alien Tech Used ----------------- None Achievements -------------- Backstab Release The Drones! Challenges ------------ None Game ------ Seed MultinovaGlidesysGuard Manual? 0 Play Time 00:29:20 Cumulative 4.2 hours Start 2024.03.31 @ 23:10:50 End 2024.03.31 @ 23:37:47 Sessions 1 Manual Loads 0 Difficulty Rogue Special Mode None Game No. 7 Rogue 7 Adventurer 0 Explorer 0 Win Type - Total 0 Types 0/0/0/0/0/0/0/0/0 Lore% 10 Gallery% 7 Achievement% 9 Wizard Run 0 Options --------- Layout 1 ASCII 0 Keyboard 0 Movement Mouse Keybinds 0 Fullscreen 1 Font 24/Smallcaps Map View 50x35 Zoom Use 0% Tactical HUD 1 Map Filters NONE Filters NONE Steam 0 RUN: 1fbefb9a-17ad-41b5-b99a-331587ae78a0